[Event "55th Iranian-ch Men Final 2022"]
[Site "Iran"]
[Date "2022.06.20"]
[Round "8.7"]
[White "Omidi, Arya"]
[Black "Rastbod, Ali"]
[Result "1/2-1/2"]
[ECO "C11"]
[WhiteElo "2321"]
[BlackElo "2362"]
[Annotator "TA"]
[PlyCount "122"]
[EventDate "2022.06.15"]
[EventType "tourn"]
[EventCountry "IRI"]
[SourceTitle "playchess.com"]
[Source "ChessBase"]
[SourceQuality "1"]
[TimeControl "40/5400+30:1800+30"]

{[%evp 16,122,14,19,27,30,51,53,54,47,73,-9,-11,-21,-37,-28,-23,-23,-25,-15,-21,-24,-22,-25,-23,-93,-109,-143,-160,-93,-13,-19,-7,-543,-159,-157,-141,-141,-150,-154,-158,-132,-157,-165,-166,-166,-151,-165,-159,-141,-2,-6,60,67,68,77,85,93,78,86,148,154,152,59,59,59,219,217,213,204,208,204,198,193,190,54,54,50,43,50,40,34,23,8,8,8,8,8,8,8,8,8,8,8,8,-20,0,0,0,0,0,0,0,0,0,0,0,0,67]} 1. e4 {[%emt 1:31:00]} e6 {[%emt 0:08:43]} 2. d4 {[%emt 0:00:00]} d5 {[%emt 0:00:01]} 3. Nc3 {[%emt 0:00:00]} Nf6 {[%emt 0:00:04]} 4. e5 {[%emt 0:00:00]} Nfd7 {[%emt 0:00:02]} 5. f4 {[%emt 0:02:00]} c5 6. Nf3 {[%emt 0:00:00]} Nc6 {[%emt 0:00:06]} 7. Be3 {[%emt 0:00:00]} Be7 {[%emt 0:00:06]} 8. Qd2 {[%emt 0:00:00]} O-O {[%emt 0:00:05]} 9. dxc5 {[%emt 0:00:00]} Qa5 {[%emt 0:00:13] Against Na4. C11: French: Classical System: 4 e5 and 4 Bg5 dxe4.} 10. O-O-O {[%emt 0:00:00]} b6 {[%emt 0:00:12]} 11. Bb5 {[%emt 0:00:00]} Nb4 {[%emt 0:01:28] White is slightly better.} 12. a3 {[%emt 0:00:00]} bxc5 {[%emt 0:00:11][%cal Ob4a2]} 13. Bxd7 {[%emt 0:00:00]} (13. axb4 cxb4 14. Na4 (14. Bxd7 $2 bxc3 15. Qxc3 Bb4 $19) 14... Qxb5 $17) (13. Kb1 $16) 13... Bxd7 $11 {[%emt 0:00:14]} 14. axb4 {[%emt 0:00:00]} (14. f5 $5 {[%cal Rf5f6]} Nc6 15. Bg5 $11) 14... cxb4 {[%emt 0:00:03]} 15. Nb1 {[%emt 0:00:00]} Rfc8 {[%emt 1:26:32]} 16. Nd4 $1 {[%emt 0:00:00]} Qa2 {[%emt 0:00:00]} 17. Qd3 {[%emt 0:00:00]} a5 {[%emt 0:00:00]} 18. Kd2 {[%emt 0:00:00]} Qxb2 {[%emt 0:00:00]} 19. Ke2 {[%emt 0:00:00]} a4 {[%emt 0:00:00] [#]} 20. Kf3 $146 {[%emt 0:00:00]} (20. Rd2 $11 {remains equal.}) ({Predecessor:} 20. Nd2 Rc3 21. Rb1 Qa3 22. Ra1 Rxd3 23. cxd3 Qc3 24. Rhc1 Rc8 25. Rxc3 Rxc3 26. Ra2 {0-1 (67) Clarke,B (2445)-Lenderman,A (2648) Douglas 2019}) 20... f6 $17 {[%emt 0:00:00]} 21. Rhe1 {[%emt 0:00:00]} fxe5 {[%emt 0:00:00]} 22. fxe5 {[%emt 0:00:00]} Rc4 {[%emt 0:00:00]} ({Black should play} 22... Be8 $17 {And now ...Bh5+ would win.} 23. Nxe6 b3 24. cxb3 (24. Qxd5 $2 Bc6 $19) 24... Bh5+ 25. Kg3 (25. g4 $2 Bxg4+ 26. Kg3 Bxe6 $19) 25... Bxd1 26. Qxd1 Qxe5+ 27. Bf4 Qf5) 23. Kf2 $11 {[%emt 0:00:00]} Bc5 {[%emt 0:00:00] Strongly threatening ...a3.} 24. Nf3 $2 {[%emt 0:00:00][%mdl 8192]} (24. Re2 $1 $11 {and White is okay.}) 24... Qxc2+ $2 {[%emt 0:00:00]} (24... b3 $19 {and Black stays clearly on top.} 25. Ng5 Qxc2+ 26. Rd2 Qxd3 27. Rxd3 d4) 25. Qxc2 $17 {[%emt 0:00:00]} Rxc2+ {[%emt 0:00:00]} 26. Rd2 {[%emt 0:00:16]} Bxe3+ {[%emt 0:00:00]} 27. Kxe3 {[%emt 0:00:32]} Rac8 {[%emt 0:00:28]} 28. Nd4 {[%emt 0:01:55]} Rc1 {[%emt 0:00:37]} 29. Rdd1 {[%emt 0:01:38]} Rxd1 {[%emt 0:01:32]} 30. Rxd1 {[%emt 0:00:01]} a3 {[%emt 0:01:19]} 31. Nd2 {[%emt 0:00:22]} Rc3+ {[%emt 0:02:16][%mdl 1024] Black has strong compensation.} 32. Ke2 {[%emt 0:00:01]} Kf7 {[%emt 0:00:13]} (32... Ba4 $17 33. Rb1 a2) 33. Rb1 $11 {[%emt 0:01:49]} a2 {[%emt 0:00:43]} (33... Kg6 $11) 34. Ra1 $14 {[%emt 0:00:06]} Ra3 {[%emt 0:00:04] White must now prevent ...Ba4.} 35. N2b3 {[%emt 0:03:34]} Ba4 {[%emt 0:02:48]} 36. Nc1 {[%emt 0:00:17]} b3 {[%emt 0:00:00] ( -> ...b2)} 37. Nd3 {[%emt 0:00:08]} Kg6 {[%emt 0:00:00]} (37... Ke7 $142) 38. Kd2 $16 {[%emt 0:00:46] White is more active.} Bd7 {[%emt 0:01:30] [#]} 39. Nb2 {[%emt 0:00:25]} (39. Kc1 $1 $16) 39... Kg5 $1 $14 {[%emt 0:00:00]} 40. Kc3 {[%emt 0:00:00]} Ra8 $2 {[%emt 0:00:00]} (40... h5 $14) 41. Nd3 $18 {[%emt 0:12:28]} Ra4 {[%emt 0:09:51]} 42. Nf3+ {[%emt 0:02:20]} Kf5 {[%emt 0:01:00]} 43. Kxb3 {[%emt 0:03:29]} Bb5 {[%emt 0:00:56] [#]} 44. Nb4 $1 {[%emt 0:01:33]} Ra5 {[%emt 0:21:13]} 45. Nxd5 {[%emt 0:07:18]} exd5 {[%emt 0:00:00][%mdl 4096] Endgame KRB-KRN} 46. Kb4 {[%emt 0:00:00][%mdl 64] Deflection} Ra8 {[%emt 0:00:00] aiming for ...Bd3.} 47. Kxb5 $14 {[%emt 0:04:18] Threatens to win with Kc5. KRN-KR} g5 $1 48. e6 {[%emt 0:00:30]} Kxe6 {[%emt 0:00:00]} 49. Nxg5+ {[%emt 0:00:35]} Kf5 {[%emt 0:00:00] The position is equal.} 50. Nf3 {[%emt 0:00:14]} Ke4 {[%emt 0:03:00]} 51. Kb4 {[%emt 0:02:51]} Ke3 {[%emt 0:00:00]} 52. Kb3 {[%emt 0:00:55]} Rb8+ 53. Kc2 {[%emt 0:05:39]} Rc8+ {[%emt 0:01:30]} 54. Kd1 {[%emt 0:00:00]} Ra8 {[%emt 0:00:30]} 55. h4 {[%emt 0:01:00]} h5 {[%emt 0:00:00]} 56. Ne1 {[%emt 0:00:00]} Kf2 {[%emt 0:00:00]} 57. Kd2 {[%emt 0:00:00]} Kg3 {[%emt 0:00:00]} 58. Ke2 {[%emt 0:01:30]} Kxh4 {[%emt 0:00:00]} 59. Kf2 {[%emt 0:00:00]} Kg4 {[%emt 0:00:35]} 60. Nd3 {[%emt 0:00:00]} h4 {[%emt 0:00:25]} 61. Nb4 {[%emt 0:00:29][%csl LRa2,LRd5]} h3 {[%emt 0:00:25] White used his chance.  Weighted Error Value: White=0.23 (precise) /Black=0.38} ({Better is} 61... Rb8 $11) 1/2-1/2

[Event "55th Iranian-ch Men Final 2022"]
[Site "Iran"]
[Date "2022.06.21"]
[Round "9.1"]
[White "Rastbod, Ali"]
[Black "Mosadeghpour, Masoud"]
[Result "1/2-1/2"]
[ECO "B09"]
[WhiteElo "2362"]
[BlackElo "2474"]
[Annotator "TA"]
[PlyCount "28"]
[EventDate "2022.06.15"]
[EventType "tourn"]
[EventCountry "IRI"]
[SourceTitle "playchess.com"]
[Source "ChessBase"]
[SourceQuality "1"]
[TimeControl "40/5400+30:1800+30"]

{[%evp 20,28,36,32,25,0,0,0,0,0,0]} 1. d4 {[%emt 0:08:23]} Nf6 {[%emt 0:00:56]} 2. Nc3 {[%emt 0:00:06]} g6 {[%emt 0:00:35]} 3. e4 {[%emt 0:00:08]} d6 {[%emt 0:00:34]} 4. f4 {[%emt 0:00:07]} Bg7 {[%emt 0:00:52]} 5. Nf3 {[%emt 0:00:21][%cal Bg1f3,Bf3g5,Bg5e6][%mdl 32]} c5 {[%emt 0:01:32]} 6. Bb5+ {[%emt 0:01:02]} Bd7 {[%emt 0:00:15]} 7. e5 {[%emt 0:00:20]} Ng4 {[%emt 0:01:25]} 8. e6 {[%emt 0:00:29]} fxe6 {[%emt 0:00:38]} 9. Ng5 {[%emt 0:00:13]} Bxb5 {[%emt 0:00:30]} 10. Nxe6 {[%emt 0:00:46]} Bxd4 {[%emt 0:00:11]} 11. Nxb5 {[%emt 0:00:41]} Qa5+ {[%emt 0:00:17] B09: Pirc Defence: Austrian Attack.} 12. c3 {[%emt 0:00:10][%mdl 1024] White has compensation.} Bf2+ {[%emt 0:00:06] The position is equal.} 13. Kd2 {[%emt 0:00:05]} Be3+ $1 {[%emt 0:00:05] [#]} 14. Ke1 $146 {[%emt 0:00:02]} ({Predecessor:} 14. Kc2 Qa4+ 15. b3 Qe4+ 16. Kb2 Bxc1+ 17. Rxc1 Ne3 18. Nxd6+ exd6 19. Qxd6 Na6 20. Rhd1 Nxd1+ 21. Rxd1 Qc6 22. Qe5 Kf7 23. Qg7+ Kxe6 24. Re1+ Kf5 25. Qe5+ {1-0 (25) Petrosian,T (2610)-Halvax,G (2437) Abu Dhabi 2018}) 14... Bf2+ {[%emt 0:00:09] An interesting draw.} 1/2-1/2

[Event "55th Iranian-ch Men Final 2022"]
[Site "Iran"]
[Date "2022.06.21"]
[Round "9.2"]
[White "Tahbaz, Arash"]
[Black "Omidi, Arya"]
[Result "1-0"]
[ECO "C67"]
[WhiteElo "2451"]
[BlackElo "2321"]
[Annotator "TA"]
[PlyCount "97"]
[EventDate "2022.06.15"]
[EventType "tourn"]
[EventCountry "IRI"]
[SourceTitle "playchess.com"]
[Source "ChessBase"]
[SourceQuality "1"]
[TimeControl "40/5400+30:1800+30"]

{[%evp 20,97,11,4,0,0,16,18,18,26,29,27,28,25,24,24,24,25,23,27,40,40,30,28,49,47,21,8,8,8,8,8,8,0,56,36,48,41,59,59,59,50,401,401,521,505,1252,1128,1133,1077,1083,1043,560,475,1275,1152,899,790,647,0,29974,29975,29975,29976,29974,29977,29976,29978,29978,29979,29979,29980,29980,29981,29981,29982,29982,29983,29983,29984]} 1. e4 {[%emt 0:00:10]} e5 {[%emt 0:00:05]} 2. Nf3 {[%emt 0:00:20]} Nc6 {[%emt 0:00:06]} 3. Bb5 {[%emt 0:02:51]} Nf6 {[%emt 0:00:08]} 4. O-O {[%emt 0:02:26]} Nxe4 {[%emt 0:00:08]} 5. d4 {[%emt 0:00:43]} Nd6 {[%emt 0:00:18]} 6. Bxc6 {[%emt 0:00:05]} dxc6 {[%emt 0:00:09]} 7. dxe5 {[%emt 0:00:02]} Nf5 {[%emt 0:00:07]} 8. Qxd8+ {[%emt 0:00:05]} Kxd8 {[%emt 0:00:02]} 9. Nc3 {[%emt 0:00:05]} Bd7 {[%emt 0:00:42]} 10. b3 {[%emt 0:00:06]} h6 {[%emt 0:00:42]} 11. h3 {[%emt 0:05:10]} Be7 {[%emt 0:00:06] C67: Ruy Lopez: Berlin Defence: 4 0-0 Nxe4.} ({But not} 11... Bb4 12. Bb2 $14) 12. Bb2 {[%emt 0:00:55]} a5 {[%emt 0:00:19]} 13. Rad1 {[%emt 0:00:49]} Kc8 {[%emt 0:00:16] The position is equal.} 14. g4 {[%emt 0:02:22] [#] aiming for Rxd7.} Nh4 {[%emt 0:00:04]} 15. Nxh4 {[%emt 0:00:05]} Bxh4 {[%emt 0:00:03]} 16. f4 {[%emt 0:00:04][%cal Bf2f4,Bf4f5][%mdl 32]} b6 {[%emt 0:17:50][%cal Oa5a4]} 17. f5 {[%emt 0:04:35]} Re8 {[%emt 0:16:32]} 18. Ne4 {[%emt 0:01:53][%cal Oe5e6]} c5 {[%emt 0:15:43]} 19. e6 {[%emt 0:01:02]} fxe6 {[%emt 0:05:52]} 20. f6 {[%emt 0:00:06]} gxf6 {[%emt 0:02:41]} 21. Nxf6 {[%emt 0:05:01]} Rd8 {[%emt 0:06:21]} 22. Nxd7 {[%emt 0:01:54]} Rxd7 {[%emt 0:00:33]} 23. Rf8+ {[%emt 0:00:08]} Kb7 {[%emt 0:00:26]} 24. Rxd7 {[%emt 0:00:16]} Rxf8 $11 {[%emt 0:00:02][%mdl 4096] [#] Endgame KRB-KRB} 25. Bg7 $146 {[%emt 0:01:19]} ({Predecessor:} 25. Be5 Kc6 26. Rh7 Kd5 27. Bxc7 Bg5 28. Kg2 e5 29. Rd7+ Ke4 {½-½ (29) Borwell,A (2215)-Sesko,M (1948) ICCF email 2008}) 25... Rf3 {[%emt 0:03:53]} (25... Rf2 $5 {[%cal Rf2c2]}) 26. Rd3 {[%emt 0:11:51]} Rxd3 {[%emt 0:01:19]} ({Better is} 26... Rf2 $11) 27. cxd3 {[%emt 0:00:02] KB-KB} Bg5 {[%emt 0:01:03]} 28. Kf2 {[%emt 0:04:18] Black must now prevent Be5.} Kc6 {[%emt 0:01:04]} 29. Be5 $1 {[%emt 0:07:58]} b5 {[%emt 0:03:05]} 30. a4 $1 {[%emt 0:10:08]} bxa4 $2 {[%emt 0:00:09][%mdl 8192] White stays focused until the end.} ({Black should try} 30... b4 $14) 31. bxa4 $18 {[%emt 0:00:02]} c4 {[%emt 0:00:57]} 32. dxc4 {[%emt 0:13:15]} Kc5 {[%emt 0:02:46]} (32... Bh4+ $142 33. Ke2 Be7) 33. Bxc7 {[%emt 0:00:27]} Kb4 {[%emt 0:03:57]} 34. Ke2 {[%emt 0:00:06]} Kxa4 {[%emt 0:00:41]} 35. Kd3 {[%emt 0:00:04]} Be7 {[%emt 0:04:55]} 36. Bf4 {[%emt 0:01:03]} Kb3 {[%emt 0:03:23]} (36... Bg5 $142 37. Bd6 Bd8) 37. Bxh6 {[%emt 0:01:39] Threatening mate with g5.} a4 {[%emt 0:02:04]} 38. g5 {[%emt 0:05:27][%cal Oc4c5] Intending c5! and mate.} a3 {[%emt 0:00:52] [#]} 39. g6 $2 {[%emt 0:00:38]} (39. c5 $1 $18 {White threatens g6 and mate.} Ka4 40. g6) 39... e5 $2 {[%emt 0:04:04][%mdl 8192]} (39... Bd6 $11 40. g7 a2) 40. g7 {[%emt 0:00:00] White mates.} a2 {[%emt 0:00:00]} 41. g8=Q {[%emt 0:01:08]} e4+ {[%emt 0:01:47]} 42. Kxe4 {[%emt 0:02:41]} a1=Q {[%emt 0:00:30] KQB-KQB} 43. c5+ $1 {[%emt 0:00:05]} Kb4 {[%emt 0:01:07]} 44. Bd2+ {[%emt 0:00:05]} Kb5 {[%emt 0:12:29]} 45. Qb8+ {[%emt 0:03:42]} Kxc5 {[%emt 0:02:37]} 46. Qc7+ {[%emt 0:00:07]} Kb5 {[%emt 0:00:07]} 47. Qb7+ {[%emt 0:00:06]} Kc5 {[%emt 0:01:25]} 48. Qxe7+ {[%emt 0:00:38]} Kc6 {[%emt 0:00:09]} 49. Qe8+ {[%emt 0:46:58] Weighted Error Value: White=0.18 (very precise) /Black=0.60} 1-0

[Event "55th Iranian-ch Men Final 2022"]
[Site "Iran"]
[Date "2022.06.21"]
[Round "9.3"]
[White "Ashraf, Artin"]
[Black "Naderi, Abdollah"]
[Result "1-0"]
[ECO "A61"]
[WhiteElo "2096"]
[BlackElo "2050"]
[Annotator "NA RC"]
[PlyCount "76"]
[EventDate "2022.06.15"]
[EventType "tourn"]
[EventCountry "IRI"]
[SourceTitle "playchess.com"]
[Source "ChessBase"]
[SourceQuality "1"]
[TimeControl "40/5400+30:1800+30"]

1. d4 {[%emt 0:07:19]} Nf6 {[%emt 0:00:06]} 2. c4 {[%emt 0:00:12]} c5 {[%emt 0:00:24]} 3. d5 {[%emt 0:00:07]} e6 {[%emt 0:00:19]} 4. Nc3 {[%emt 0:00:06]} exd5 {[%emt 0:00:05]} 5. cxd5 {[%emt 0:00:14]} d6 {[%emt 0:00:06]} 6. Nf3 {[%emt 0:00:12]} g6 {[%emt 0:00:26]} 7. Bf4 {[%emt 0:00:06]} a6 {[%emt 0:00:31]} 8. Nd2 {[%emt 0:00:15]} Bg7 {[%emt 0:14:58]} 9. Nc4 {[%emt 0:03:07]} O-O {[%emt 0:01:26]} 10. a4 {[%emt 0:02:19]} Nbd7 {[%emt 0:09:55]} 11. Nxd6 {[%emt 0:09:35]} Nb6 {[%emt 0:07:29]} 12. a5 {[%emt 0:19:07]} Nh5 {[%emt 0:04:55]} 13. Nxc8 {[%emt 0:02:30]} Rxc8 {[%emt 0:02:25]} 14. Bc1 {[%emt 0:02:30]} Nc4 {[%emt 0:12:26]} 15. g4 {[%emt 0:21:47]} Nf6 {[%emt 0:01:05]} 16. Bg2 {[%emt 0:00:17]} Nxg4 {[%emt 0:03:10]} 17. h3 {[%emt 0:00:06]} Nxf2 {[%emt 0:08:18]} 18. Kxf2 {[%emt 0:00:11]} Qh4+ {[%emt 0:00:24]} 19. Kf1 {[%emt 0:01:02]} Bd4 {[%emt 0:00:43]} 20. Qe1 {[%emt 0:00:46]} Qf6+ {[%emt 0:00:57]} 21. Bf3 {[%emt 0:00:10]} Rfe8 {[%emt 0:00:24]} 22. Ra4 {[%emt 0:12:11]} Ne3+ {[%emt 0:08:08]} 23. Bxe3 {[%emt 0:00:06]} Rxe3 {[%emt 0:00:07]} 24. Qg3 {[%emt 0:00:39]} Re5 {[%emt 0:01:06]} 25. h4 {[%emt 0:00:27]} Rce8 {[%emt 0:03:41]} 26. Kg2 {[%emt 0:04:05]} b5 {[%emt 0:04:44]} 27. Rxd4 {[%emt 0:00:10]} cxd4 {[%emt 0:00:15]} 28. Nd1 {[%emt 0:00:07]} Qd8 {[%emt 0:08:28]} 29. Nf2 {[%emt 0:04:36]} Qxa5 {[%emt 0:06:41]} 30. Qf4 {[%emt 0:02:40]} Qb6 {[%emt 0:01:11]} 31. Rd1 {[%emt 0:00:18]} Qd8 {[%emt 0:00:34]} 32. Ng4 {[%emt 0:03:21]} Rxe2+ {[%emt 0:00:16]} 33. Bxe2 {[%emt 0:00:02]} Rxe2+ {[%emt 0:00:06]} 34. Kf1 {[%emt 0:00:54]} Rc2 {[%emt 0:00:50]} 35. Re1 {[%emt 0:00:14]} Kg7 {[%emt 0:00:39]} 36. Qh6+ {[%emt 0:02:58]} Kh8 {[%emt 0:00:08]} 37. Qg5 {[%emt 0:00:17]} Rc8 {[%emt 0:00:36]} 38. Qe5+ {[%emt 0:00:49]} f6 {[%emt 0:01:28]} 1-0

[Event "55th Iranian-ch Men Final 2022"]
[Site "Iran"]
[Date "2022.06.21"]
[Round "9.4"]
[White "Ghaem Maghami, Ehsan"]
[Black "Poormosavi, Seyed Kian"]
[Result "1-0"]
[ECO "E33"]
[WhiteElo "2519"]
[BlackElo "2358"]
[Annotator "TA"]
[PlyCount "188"]
[EventDate "2022.06.15"]
[EventType "tourn"]
[EventCountry "IRI"]
[SourceTitle "playchess.com"]
[Source "ChessBase"]
[SourceQuality "1"]
[TimeControl "40/5400+30:1800+30"]

{[%evp 9,188,32,25,21,28,0,0,0,0,0,39,33,78,66,71,62,86,68,79,79,73,66,125,106,110,99,120,26,25,33,35,26,22,25,25,0,0,7,3,0,0,0,0,0,0,0,0,0,9,2,12,0,12,5,12,7,7,0,0,-6,8,8,8,8,8,0,0,0,0,0,1,0,0,0,1,1,1,0,0,0,0,0,1,0,0,0,0,0,0,0,0,0,0,0,0,0,0,0,0,0,0,0,0,0,8,0,0,0,0,0,0,0,0,0,0,0,0,0,4,0,0,0,0,0,0,0,0,0,0,0,0,0,8,1,3,0,8,8,8,8,8,8,8,8,8,8,16,0,60,27,75,75,76,76,76,76,76,76,138,76,101,108,145,109,109,81,182,182,182,188,197,190,197,197,29974,29968,29985,29986,29989,29990,29990]} 1. Nf3 {[%emt 0:06:13]} Nf6 {[%emt 0:00:29]} 2. d4 {[%emt 0:00:40]} e6 {[%emt 0:08:10]} 3. c4 {[%emt 0:00:29]} Nc6 {[%emt 0:00:25]} 4. Nc3 {[%emt 0:20:24]} Bb4 {[%emt 0:00:28]} 5. Qc2 {[%emt 0:02:07]} O-O {[%emt 0:00:20]} 6. e4 {[%emt 0:10:22] E33: Nimzo-Indian: Classical: 4...Nc6.} d6 {[%emt 0:07:53]} 7. e5 {[%emt 0:16:33]} dxe5 {[%emt 0:20:02]} 8. dxe5 {[%emt 0:00:12] The position is equal.} Ng4 {[%emt 0:02:57]} 9. Bf4 {[%emt 0:02:24] Black must now prevent Rd1.} Bc5 {[%emt 0:02:44] Hoping for ...Nb4.} 10. Bg3 {[%emt 0:09:53] [#]} Nd4 $146 {[%emt 0:02:17]} ({Predecessor:} 10... f5 11. h3 Nh6 12. Rd1 Qe8 13. Bf4 Nf7 14. a3 a5 15. Be2 Bd7 16. Nb5 Qc8 {½-½ (35) Fodor,T (2502)-Berescu,A (2516) Baia Sprie 2012}) 11. Nxd4 {[%emt 0:01:33]} Bxd4 {[%emt 0:00:22]} (11... Qxd4 $2 12. Rd1 Ne3 13. fxe3 $18) 12. Rd1 {[%emt 0:02:53]} c5 {[%emt 0:00:29]} 13. Bd3 {[%emt 0:01:29]} f5 {[%emt 0:20:46]} 14. exf6 $1 {[%emt 0:03:27]} Nxf6 {[%emt 0:00:41]} 15. O-O {[%emt 0:02:04]} h6 {[%emt 0:03:47]} (15... Bd7 $14) 16. Nb5 {[%emt 0:05:32] White is more active.} e5 {[%emt 0:02:22]} 17. b4 {[%emt 0:07:30]} Bg4 {[%emt 0:08:44]} 18. Be2 {[%emt 0:00:16]} (18. Rd2 $16) 18... Bxe2 $1 $11 {[%emt 0:00:46]} 19. Qxe2 {[%emt 0:00:07]} Qb6 {[%emt 0:00:25]} 20. Nxd4 {[%emt 0:02:23]} exd4 {[%emt 0:00:23]} 21. bxc5 {[%emt 0:00:13]} Qxc5 {[%emt 0:00:19]} 22. Qe6+ {[%emt 0:00:13]} Rf7 $1 {[%emt 0:03:00]} 23. Bd6 {[%emt 0:00:20]} Qc6 {[%emt 0:00:58] Strongly threatening ...Re8.} 24. Rxd4 {[%emt 0:02:05]} Re8 {[%emt 0:00:04]} 25. Qf5 {[%emt 0:00:49]} Ne4 {[%emt 0:03:31]} 26. Qb5 {[%emt 0:02:11]} Qxb5 {[%emt 0:03:01]} 27. cxb5 {[%emt 0:00:01]} Nc3 {[%emt 0:00:05][%csl LRa2,LRb5] And now ...Ne2+ would win.} 28. Rb4 {[%emt 0:01:14]} Nxa2 {[%emt 0:00:41]} 29. Rb3 {[%emt 0:00:06]} Re2 {[%emt 0:00:36]} 30. Ra3 {[%emt 0:01:02]} Rc2 {[%emt 0:03:39]} 31. Be5 {[%emt 0:00:37]} b6 {[%emt 0:02:14]} 32. h4 {[%emt 0:00:30]} Nb4 {[%emt 0:01:30]} 33. Bb8 {[%emt 0:00:22]} Nd5 {[%emt 0:02:16]} 34. Rd1 {[%emt 0:00:40]} Rc8 {[%emt 0:00:35] [#]} (34... Nc3 {keeps more tension.} 35. Rd8+ Kh7 36. Rb3 Ne2+) 35. Rxa7 $1 {[%emt 0:00:29]} Rxa7 {[%emt 0:00:25]} ({Don't take} 35... Nc3 36. Rxf7 Kxf7 37. Rd7+ Kf6 38. Rd6+ Kf5 39. Rxb6 $16) 36. Bxa7 {[%emt 0:00:07][%mdl 4096] Endgame KRB-KRN} Rc5 {[%emt 0:00:07]} 37. Rb1 {[%emt 0:00:23]} Rc8 {[%emt 0:00:45] Prevents Bb8.} 38. Kf1 {[%emt 0:00:56]} Kf7 {[%emt 0:00:14]} 39. Ra1 {[%emt 0:00:33]} Rc5 {[%emt 0:00:25]} 40. Bb8 {[%emt 0:00:00]} Rxb5 {[%emt 0:01:35]} 41. Ra7+ {[%emt 0:00:44]} Kf6 {[%emt 0:03:20]} 42. h5 {[%emt 0:09:12]} Ne7 {[%emt 0:08:23]} 43. Bc7 {[%emt 0:00:42]} Rxh5 {[%emt 0:05:54]} 44. Bxb6 {[%emt 0:01:18]} Rd5 {[%emt 0:00:44] Against Bd4+} 45. Ba5 {[%emt 0:00:42]} Ke6 {[%emt 0:01:43]} 46. Bc3 {[%emt 0:03:26]} g6 {[%emt 0:00:10]} 47. Ke2 {[%emt 0:01:35]} h5 {[%emt 0:00:25]} 48. Bd2 {[%emt 0:04:28]} Nf5 {[%emt 0:00:31]} 49. Ra2 {[%emt 0:01:28]} Nd4+ {[%emt 0:00:36]} 50. Ke3 {[%emt 0:00:31]} Nf5+ {[%emt 0:00:03]} 51. Kf3 {[%emt 0:00:22]} Rd3+ {[%emt 0:01:46]} 52. Ke2 {[%emt 0:00:12]} Rd6 {[%emt 0:00:02]} 53. Bc3 {[%emt 0:00:11]} Rc6 {[%emt 0:00:27]} 54. Ba1 {[%emt 0:01:56]} Rd6 {[%emt 0:00:06]} 55. Kf3 {[%emt 0:00:26]} Rb6 {[%emt 0:00:09]} 56. Ra4 {[%emt 0:01:14]} Rd6 {[%emt 0:03:54]} 57. g3 {[%emt 0:00:35]} Rd5 {[%emt 0:04:36]} 58. Bb2 {[%emt 0:02:54]} Rd3+ {[%emt 0:01:19]} 59. Ke2 {[%emt 0:00:59]} Rd6 {[%emt 0:00:05]} 60. Bc3 {[%emt 0:00:47]} Rc6 {[%emt 0:00:23]} 61. Ba1 {[%emt 0:00:43]} Rd6 {[%emt 0:00:04]} 62. Kf3 {[%emt 0:00:26]} Rd5 {[%emt 0:00:03]} 63. Ra2 {[%emt 0:01:21]} Ne7 {[%emt 0:01:08]} 64. Ke4 {[%emt 0:01:27]} Nf5 {[%emt 0:00:30]} 65. Kf4 {[%emt 0:00:32]} Nd6 {[%emt 0:01:05]} 66. Kf3 {[%emt 0:01:41]} Nf5 {[%emt 0:00:06]} 67. Ra6+ {[%emt 0:00:20]} Rd6 {[%emt 0:00:02]} 68. Ra8 {[%emt 0:00:06]} Rd3+ {[%emt 0:02:04]} 69. Kf4 {[%emt 0:00:58]} Rd2 {[%emt 0:00:37]} 70. f3 {[%emt 0:00:55]} Rd6 {[%emt 0:00:44]} 71. Rf8 {[%emt 0:00:42]} Ke7 {[%emt 0:01:14]} 72. Ra8 {[%emt 0:00:07]} Rc6 {[%emt 0:00:40]} 73. Ra4 {[%emt 0:01:03]} Kf7 {[%emt 0:00:22]} 74. g4 {[%emt 0:00:47]} hxg4 {[%emt 0:00:20]} 75. fxg4 {[%emt 0:00:02]} Ne7 {[%emt 0:01:15]} 76. Kg5 {[%emt 0:01:32]} Rc5+ {[%emt 0:00:15]} 77. Kh6 {[%emt 0:00:24]} Rc1 {[%emt 0:01:31]} 78. Rf4+ {[%emt 0:00:26]} Ke6 {[%emt 0:00:41]} (78... Nf5+ $11 79. gxf5 Rh1+ 80. Kg5 Rg1+ 81. Rg4 Rxg4+ 82. Kxg4 gxf5+ 83. Kxf5) 79. Bb2 {[%emt 0:00:45]} Rh1+ {[%emt 0:01:30]} (79... Rc2 $11 80. Ba1 Nd5) 80. Kg7 $16 {[%emt 0:00:30]} Rh3 {[%emt 0:00:41]} 81. Re4+ {[%emt 0:00:20]} Kd7 {[%emt 0:00:20]} 82. Bf6 {[%emt 0:00:57]} Nd5 {[%emt 0:00:01]} 83. g5 {[%emt 0:00:46]} Re3 {[%emt 0:00:38]} (83... Rf3 $142) 84. Ra4 {[%emt 0:00:31]} (84. Rxe3 $142 {Intending Rd3 and mate.} Nxe3 85. Kxg6) 84... Ke6 {[%emt 0:00:53]} 85. Kxg6 {[%emt 0:00:15]} Rb3 {[%emt 0:00:25]} 86. Re4+ {[%emt 0:01:08]} Kd6 {[%emt 0:00:21]} 87. Re8 {[%emt 0:01:29]} Rf3 {[%emt 0:00:39] [#]} (87... Nf4+ $16 88. Kf5 Nh3) 88. Kf7 $1 $18 {[%emt 0:00:16]} Kd7 {[%emt 0:00:12] [#]} 89. Re5 $1 {[%emt 0:00:16]} Kd6 {[%emt 0:00:18][%cal Of3f6]} 90. Re6+ {[%emt 0:00:22]} Kd7 {[%emt 0:01:01]} 91. g6 {[%emt 0:00:34][%cal Bg5g6,Bg6g7][%mdl 32] g7 would kill now.} Nf4 $2 {[%emt 0:00:35]} (91... Ne3 $18) 92. Re7+ {[%emt 0:00:42] White mates.} Kd6 {[%emt 0:00:06]} 93. g7 {[%emt 0:00:28]} Nh5 {[%emt 0:00:22]} 94. Re6+ {[%emt 0:00:06]} Kd5 {[%emt 0:01:41] Weighted Error Value: White=0.06 (flawless) /Black=0.05 (flawless)} 1-0